Cogmind - Beta 15 @@@ ROGUE MODE // 2025.06.07 @ 23:51:21 // Winter2019/RPGLIKE Player: Jack Result: Self-destructed Performance ------------- Evolutions (3) 1500 Regions Visited (5) 1000 Robots Destroyed (61) 305 Value Destroyed (1843) 1843 Prototype IDs (0) 0 Alien Tech Used (0) 0 Bonus (-80) -80 TOTAL SCORE: 4568 Bonus ------- High Alert Combat Kills 97 Friendly Fire -177 Cogmind --------- Core Integrity 46/1200 Matter 300/300 Energy 125/125 System Corruption 0% Temperature Cool (0) Movement Hovering (56) Location -7/Factory Parts ------- > --- POWER (1) -------- Light Ion Engine > --- PROPULSION (2) --- Gravmag System Gravmag System > --- UTILITY (2) ------ Microactuators Microactuators > --- WEAPON (4) ------- Blade Saw Blade Saw Blade Saw > --- INVENTORY (1) ---- Axe Peak State ------------ > --- POWER ------------ Micro Nuclear Core > --- PROPULSION ------- Gravmag System Cesium-ion Thruster > --- UTILITY ---------- Microactuators Microactuators > --- WEAPON ----------- Blade Saw Blade Saw Blade Saw Blade Saw > --- INVENTORY -------- Axe [Rating: 31] Favorites ----------- Power Light Ion Engine Engine Light Ion Engine Power Core Micro Nuclear Core Propulsion Flight Unit Hover Unit Gravmag System Flight Unit Flight Unit Utility Microactuators Device Microactuators Protection Backup Plating I Weapon Blade Saw Energy Gun EM Pulse Gun Ballistic Gun Assault Rifle Slashing Weapon Blade Saw Build | -11 -10 -9 -9 -8 -7 ------- Run | Yrd Mat Mat Min Mat Fac Slots Evolved 5 | 4 . . . . 1 Power . | . . . . . . Propulsion 1 | 1 . . . . . Utility 1 | . . . . . 1 Weapon 3 | 3 . . . . . Parts Attached 30 | 3 4 1 5 . 17 Power 4 | . 1 . 1 . 2 Engine 3 | . 1 . 1 . 1 Core 1 | . . . . . 1 Reactor . | . . . . . . Propulsion 9 | . 2 . 4 . 3 Treads . | . . . . . . Leg . | . . . . . . Wheel . | . . . . . . Hover 2 | . . . . . 2 Flight 7 | . 2 . 4 . 1 Utility 2 | . . . . . 2 Device 2 | . . . . . 2 Storage . | . . . . . . Processor . | . . . . . . Hackware . | . . . . . . Protection . | . . . . . . Artifact . | . . . . . . Weapon 15 | 3 1 1 . . 10 Energy Gun 2 | 2 . . . . . Energy Cannon . | . . . . . . Ballistic Gun 2 | 1 1 . . . . Ballistic Cannon . | . . . . . . Launcher . | . . . . . . Special Weapon . | . . . . . . Impact Weapon . | . . . . . . Slashing Weapon 11 | . . 1 . . 10 Piercing Weapon . | . . . . . . Special Melee Weapon . | . . . . . . Unidentified Prototypes . | . . . . . . Parts Lost 3 | . . . . . 3 Power . | . . . . . . Propulsion 1 | . . . . . 1 Utility . | . . . . . . Weapon 2 | . . . . . 2 Highest Loss Streak 1 | . . . . . 1 To Critical Strikes . | . . . . . . Average Backups . | . . . . . . Power . | . . . . . . Propulsion . | . . . . . . Utility . | . . . . . . Weapon . | . . . . . . Tool/Special . | . . . . . . Unused Backups . | . . . . . . Power . | . . . . . . Propulsion . | . . . . . . Utility . | . . . . . . Weapon . | . . . . . . Tool/Special . | . . . . . . Average Slot Usage (%) 73 | . 51 55 50 50 85 Engine 7 | . 7 12 12 12 5 Hover 3 | . . . . . 4 Flight 16 | . 14 25 25 25 13 Device 8 | . . . . . 13 Ballistic Gun 2 | . 21 11 . . . Slashing Weapon 32 | . . 6 12 12 45 Peak Build Rating 31 | 3 5 8 6 7 31 Average Rating 15 | . 4 5 6 6 21 On Entrance 4 | . 3 5 6 6 7 Naked Turns . | . . . . . . Heaviest Build 15 | 6 7 6 5 6 15 Greatest Support 23 | 8 13 13 13 13 23 Greatest Overweight (x) 1 | . . . . . 1 Average Overweight (x) . | . . . . . . Largest Inventory Capacity 1 | . . . . . 1 Average Capacity . | . . . . . . Most Carried 1 | . . . . . 1 Average Carried . | . . . . . . Final Capacity 1 | . . . . . 1 Final Carried 1 | . . . . . 1 Class Distribution -------------------- 63% | Hacker-Gladiator 12% | Hacker-Mutant 10% | Scavenger-Mutant 9% | Mutant 4% | Gunner Dominant Class ---------------- Mutant | -10/Materials Scavenger-Mutant | -9/Materials Hacker-Mutant | -9/Mines Hacker-Mutant | -8/Materials Hacker-Gladiator | -7/Factory Resources | -11 -10 -9 -9 -8 -7 ----------- Run | Yrd Mat Mat Min Mat Fac Matter Collected 672 | 200 99 78 50 . 245 Remotely . | . . . . . . Salvage Created 2407 | . 130 344 398 . 1535 Parts 135 | . 12 15 29 4 75 Haulers Intercepted . | . . . . . . Recyclers Shooed 2 | . . 1 1 . . Parts Field Recycled . | . . . . . . Retrieved Matter . | . . . . . . Parts Self-Destructed . | . . . . . . Prevented . | . . . . . . Kills | -11 -10 -9 -9 -8 -7 ------- Run | Yrd Mat Mat Min Mat Fac Combat Hostiles Destroyed 46 | . 5 5 12 1 23 Melee 39 | . . 3 12 1 23 Guns 7 | . 5 2 . . . Classes Destroyed 10 | . 3 1 2 1 3 Worker 6 | . . . . . 6 Builder 1 | . . . 1 . . Recycler 5 | . . . 2 . 3 Watcher 2 | . 1 1 . . . Swarmer 10 | . 3 . 7 . . Grunt 25 | . 2 4 5 . 14 Duelist 1 | . . 1 . . . Sentry 4 | . . . . 1 3 Hunter 1 | . . . . . 1 Programmer 5 | . . . . . 5 Thug 1 | . . . 1 . . Best Kill Streak 5 | . 4 3 3 1 5 Combat Bots Only 5 | . 4 3 3 1 5 Max Kills in Single Turn 1 | . 1 1 1 1 1 Gunslinging . | . . . . . . Exploded . | . . . . . . Melee 1 | . . 1 1 1 1 Uniques/NPCs Destroyed . | . . . . . . Combat | -11 -10 -9 -9 -8 -7 -------- Run | Yrd Mat Mat Min Mat Fac Hostile Shots Fired 341 | . 12 28 45 6 250 Missed 136 | . 6 12 19 2 97 Hits 205 | . 6 16 26 4 153 Melee 5 | . . 5 . . . Projectile 200 | . 6 11 26 4 153 AOE 2 | . . . . . 2 Critical Strikes 4 | . . . . 1 3 Damage Taken 2687 | . 62 285 235 58 2047 Core 2230 | . 46 237 194 48 1705 Absorbed by Shields . | . . . . . . Redirected to Core 1493 | . 46 167 118 35 1127 Ignored by Resistances 204 | . . . . . 204 Core Remaining (%) 98 | 100 100 . 95 100 . Volleys Fired 25 | . 12 13 . . . Largest 4 | . 4 2 . . . Hottest 120 | . 120 40 . . . Shots Fired 57 | . 31 26 . . . Gun 57 | . 31 26 . . . Cannon . | . . . . . . Launcher . | . . . . . . Special . | . . . . . . Kinetic 47 | . 21 26 . . . Thermal . | . . . . . . Explosive . | . . . . . . Electromagnetic 10 | . 10 . . . . Robot Hit Streak 6 | . 4 6 . . . Robot Miss Streak 5 | . 5 4 . . . Penetration Max . | . . . . . . Secondary Targets 2 | . 2 . . . . Max Gunslinging Chain 1 | . 1 . . . . Shots Hit Robots 217 | . 13 23 29 2 150 Core Hits 102 | . 10 10 14 1 67 Critical Kills . | . . . . . . Critical Parts Destroyed . | . . . . . . Critical Strikes 42 | . . 1 4 . 37 Sever 42 | . . 1 4 . 37 Melee Attacks 302 | . . 8 48 3 243 Impact . | . . . . . . Slashing 302 | . . 8 48 3 243 Piercing . | . . . . . . Sneak Attacks 22 | . . 1 6 . 15 Combat Hostiles . | . . . . . . Follow-up Attacks 60 | . . . . . 60 Damage Inflicted 4563 | . 178 422 1128 71 2764 Guns 336 | . 178 158 . . . Cannons . | . . . . . . Explosions . | . . . . . . Melee 4227 | . . 264 1128 71 2764 Ramming . | . . . . . . Kinetic 253 | . 95 158 . . . Thermal . | . . . . . . Explosive . | . . . . . . Electromagnetic 83 | . 83 . . . . Impact . | . . . . . . Slashing 4227 | . . 264 1128 71 2764 Piercing . | . . . . . . Highest Corruption . | . . . . . . Average Corruption . | . . . . . . Corruption Purged . | . . . . . . Corruption Blocked . | . . . . . . Overload Shots . | . . . . . . Overflow Damage 167 | . . 33 121 . 13 Projectiles . | . . . . . . Explosions . | . . . . . . Melee 167 | . . 33 121 . 13 Knockbacks . | . . . . . . Impact . | . . . . . . Kinetic . | . . . . . . Secondary . | . . . . . . Self-Inflicted Damage . | . . . . . . Shots . | . . . . . . Rammed . | . . . . . . Targets Rammed . | . . . . . . Kicked . | . . . . . . Crushed . | . . . . . . Highest Temperature 90 | . 90 20 . 15 28 Average Temperature 18 | . 30 5 . 9 8 Received Heat Transfer 927 | . 18 66 60 27 756 Siege Activations . | . . . . . . Martial Activations . | . . . . . . Shielding Activations . | . . . . . . Robots Disrupted . | . . . . . . Combat Hostiles . | . . . . . . Robots Corrupted . | . . . . . . Combat Hostiles . | . . . . . . Parts Fried . | . . . . . . Impact Corruptions . | . . . . . . Robots Melted . | . . . . . . Combat Hostiles . | . . . . . . Parts Melted 1 | . . . . . 1 Heat Transferred . | . . . . . . Parts Sabotaged . | . . . . . . Parts Stolen . | . . . . . . Parts Stripped . | . . . . . . Power Chain Reactions . | . . . . . . Alert | -11 -10 -9 -9 -8 -7 ------- Run | Yrd Mat Mat Min Mat Fac Maximum Alert Level 2 | . . . 1 . 2 Low Security (%) 64 | 100 100 100 91 100 46 Level 1 26 | . . . 8 . 38 Level 2 9 | . . . . . 14 Level 3 . | . . . . . . Level 4 . | . . . . . . Level 5 . | . . . . . . High Security . | . . . . . . Max Security . | . . . . . . Peak Influence 549 | . 105 118 224 130 549 Initial 83 | . . 36 45 83 58 Average 164 | . 66 64 116 92 209 Influence Increases 1845 | . 157 142 319 87 1140 Destroy 0b10 Robot/C 920 | . 100 100 240 20 460 Destroy 0b10 Robot/NC 70 | . 5 5 15 . 45 Destroy Leader 204 | . 22 22 40 10 110 Allied During Kill 2 | . . . . 2 . Successful Hack 41 | . . . . 10 31 Destroy Structure 23 | . . . 9 . 14 Partial Spotted 45 | . . 15 . . 30 Lose Combat Pursuer 540 | . 30 . 15 45 450 Influence Decreases 1296 | . 70 111 223 171 721 Entered New Map 327 | . . 51 73 131 72 Time Decay 769 | . 70 60 150 20 469 Search Patrol Dispatched 150 | . . . . . 150 Lost Part 30 | . . . . . 30 Lost Ally 20 | . . . . 20 . Squads Dispatched 11 | . . 1 1 1 8 Investigation 6 | . . 1 . 1 4 Extermination 3 | . . . . . 3 Reinforcement 2 | . . . 1 . 1 Assault . | . . . . . . Garrison . | . . . . . . Intercept . | . . . . . . Searches Triggered 1 | . . . . . 1 Construction Impeded 1 | . . . 1 . . Haulers Reinforced . | . . . . . . Active Scanning Responses . | . . . . . . Cargo Convoy Interrupts . | . . . . . . Stealth | -11 -10 -9 -9 -8 -7 --------- Run | Yrd Mat Mat Min Mat Fac Distress Signals 4 | . 1 . . . 3 Communications Jammed . | . . . . . . Distress Signals . | . . . . . . Times Spotted 93 | . 9 8 13 4 59 Peak Tracking Total 11 | . 3 3 4 4 11 Tactical Retreats 15 | . 2 . 1 1 11 Traps | -11 -10 -9 -9 -8 -7 ------- Run | Yrd Mat Mat Min Mat Fac Traps Triggered 3 | . . 1 . 1 1 Indirectly . | . . . . . . Trap Hack Attempts . | . . . . . . Triggered . | . . . . . . Disarmed . | . . . . . . Reprogrammed . | . . . . . . Reused . | . . . . . . Traps Extracted . | . . . . . . Installed . | . . . . . . Triggered . | . . . . . . Machines | -11 -10 -9 -9 -8 -7 ---------- Run | Yrd Mat Mat Min Mat Fac Machines Disabled 1 | . 1 . . . . Max in Single Turn 1 | . 1 . . . . Machines Repaired . | . . . . . . Machines Dismantled . | . . . . . . Machines Sabotaged . | . . . . . . Overloaded Fab Kills . | . . . . . . Hacking | -11 -10 -9 -9 -8 -7 --------- Run | Yrd Mat Mat Min Mat Fac Machines Accessed 8 | . . . . 3 5 Terminals 4 | . . . . 2 2 Fabricators 3 | . . . . . 3 Repair Stations 1 | . . . . 1 . Recycling Units . | . . . . . . Scanalyzers . | . . . . . . Garrison Access . | . . . . . . Total Hacks 17 | . . . . 6 11 Successful 12 | . . . . 4 8 Failed 4 | . . . . 1 3 Catastrophic . | . . . . . . Database Lockouts 1 | . . . . 1 . Manual 9 | . . . . 5 4 Terminals 9 | . . . . 5 4 Fabricators 7 | . . . . . 7 Repair Stations 1 | . . . . 1 . Recycling Units . | . . . . . . Scanalyzers . | . . . . . . Garrison Access . | . . . . . . Terminal Hacks 5 | . . . . 3 2 Part Schematic 2 | . . . . 2 . Level Access Points 1 | . . . . 1 . Fabricator Index 1 | . . . . . 1 Zone Layout 1 | . . . . . 1 Fabricator Hacks 6 | . . . . . 6 Load Schematic 3 | . . . . . 3 Build 3 | . . . . . 3 Repair Station Hacks 1 | . . . . 1 . Refit 1 | . . . . 1 . Recycling Unit Hacks . | . . . . . . Scanalyzer . | . . . . . . Garrison Access Hacks . | . . . . . . Unauthorized Hacks . | . . . . . . Terminals . | . . . . . . Fabricators . | . . . . . . Repair Stations . | . . . . . . Recycling Units . | . . . . . . Scanalyzers . | . . . . . . Garrison Access . | . . . . . . Data Cores Recovered . | . . . . . . Used . | . . . . . . Hacking Detections 6 | . . . . 2 4 Full Trace Events 5 | . . . . 1 4 Feedback Events . | . . . . . . Feedback Blocked . | . . . . . . Robot Schematics Acquired . | . . . . . . Robots Built . | . . . . . . Authchips . | . . . . . . Time . | . . . . . . Total Robot Build Rating . | . . . . . . Part Schematics Acquired 2 | . . . . 2 . Parts Built 6 | . . . . . 6 Authchips . | . . . . . . Time 108 | . . . . . 108 Total Part Build Rating 18 | . . . . . 18 Parts Repaired . | . . . . . . Time . | . . . . . . Parts Recycled . | . . . . . . Recycled Matter . | . . . . . . Retrieved Matter . | . . . . . . Retrieved Components . | . . . . . . Parts Scanalyzed . | . . . . . . Part Schematics Acquired . | . . . . . . Parts Damaged . | . . . . . . Bothacking | -11 -10 -9 -9 -8 -7 ------------ Run | Yrd Mat Mat Min Mat Fac Used RIF Installer . | . . . . . . Robots Hacked . | . . . . . . Non-combat . | . . . . . . Combat . | . . . . . . Robot Hacks Applied . | . . . . . . Relay Couplers Released . | . . . . . . Fabnet Peak Effective % . | . . . . . . Robots Rewired . | . . . . . . Allies Hacked . | . . . . . . Hacks Repelled . | . . . . . . Allies | -11 -10 -9 -9 -8 -7 -------- Run | Yrd Mat Mat Min Mat Fac Total Allies 1 | . . . 1 . . Largest Group 1 | . . . 1 1 . Highest-Rated Group 31 | . . . 31 31 . Highest-Rated Ally 31 | . . . 31 31 . Total Orders . | . . . . . . Ally Attacks 3 | . . . . 3 . Total Damage 21 | . . . . 21 . Kills . | . . . . . . Allies Corrupted . | . . . . . . Allies Melted . | . . . . . . Intel | -11 -10 -9 -9 -8 -7 ------- Run | Yrd Mat Mat Min Mat Fac Active Infowar (turns) . | . . . . . . Robot Analysis Total . | . . . . . . Derelict Logs Recovered 2 | . . . 2 . . Drone Launches . | . . . . . . Drone Recoveries . | . . . . . . Exploration | -11 -10 -9 -9 -8 -7 ------------- Run | Yrd Mat Mat Min Mat Fac Turns Passed 2006 | 59 167 135 308 58 1279 Spaces Moved 2295 | 104 275 167 354 118 1277 Core 179 | 104 75 . . . . Treads . | . . . . . . Legs . | . . . . . . Wheels . | . . . . . . Hover 212 | . . . . . 212 Flight 1904 | . 200 167 354 118 1065 Fastest Speed 34 | 50 37 37 37 37 34 Average Speed 39 | 50 40 37 37 37 39 Slowest Speed 115 | 50 50 37 37 40 115 Overloaded Moves . | . . . . . . Propulsion Burnouts . | . . . . . . Robots Hopped 7 | . 2 . . . 5 Potential Cave-ins . | . . . . . . Cave-ins Triggered . | . . . . . . Exploration Rate (%) 31 | 3 60 20 61 17 28 Regions Visited 5 Branch Regions 1 Pre-discovered Areas 1 | . . . 1 . . Known Exits Taken 1 | . . . . 1 . Unknown Exits Taken 4 | 1 1 1 1 . . Scrap Searched 1 | . . . 1 . . Spaces Dug 23 | . . . 9 . 14 Terrain Destroyed 23 | . . . 9 . 14 Melee 23 | . . . 9 . 14 Projectile . | . . . . . . AOE . | . . . . . . Terrain Rammed . | . . . . . . Walls Destroyed . | . . . . . . Machines Disabled . | . . . . . . Actions | -11 -10 -9 -9 -8 -7 --------- Run | Yrd Mat Mat Min Mat Fac Total 3016 | 108 302 204 460 126 1816 Wait 366 | 2 9 14 28 . 313 Move 2276 | 103 270 166 353 117 1267 Hop 7 | . 2 . . . 5 Pick Up 3 | . . . . . 3 Fast Attach 26 | 3 4 1 . 1 17 Attach 1 | . . . . . 1 Detach . | . . . . . . Swap 11 | . . . 5 . 6 Drop 27 | . 2 2 5 . 18 Fire 25 | . 12 13 . . . Melee 219 | . . 8 48 3 160 Ram . | . . . . . . Kick . | . . . . . . Crush . | . . . . . . Escape Stasis . | . . . . . . Rewire . | . . . . . . Trap . | . . . . . . Miscellaneous 55 | . 3 . 21 5 26 Route ------- -11/Scrapyard -10/Materials (discovered 4 exits: *Mat x2 / [*Min x2]) -9/Materials -9/Mines -8/Materials (discovered 3 exits: *Fac x3) -7/Factory (discovered 1 exit: [*Low]) History --------- Turn | Location | Event 6 | -11/Scrapyard | Discovered new exit (range 12) 7 | -11/Scrapyard | Upgraded with Propulsion slot (x1) 7 | -11/Scrapyard | Upgraded with Weapon slot (x3) 60 | -11/Scrapyard | Entered Materials 104 | -10/Materials | Discovered new exit (range 6) 154 | -10/Materials | Discovered new exit (range 15) 183 | -10/Materials | Discovered new exit (range 9) 215 | -10/Materials | Discovered new exit (range 4) 227 | -10/Materials | Entered another Materials area 229 | -9/Materials | Reached level 2 357 | -9/Materials | Discovered new exit (range 8) 362 | -9/Materials | Entered Mines 364 | -9/Mines | Reached level 3 393 | -9/Mines | Learned Materials terminal intel 525 | -9/Mines | Learned location of Storage (-7) 645 | -9/Mines | Reached level 4 653 | -9/Mines | Escorted by a lone wolf Derelict 660 | -9/Mines | Discovered new exit (range 5) 670 | -9/Mines | Entered Materials 670 | -8/Materials | Accompanied by 1 ally 671 | -8/Materials | Loaded intel: 12 terminal locations 672 | -8/Materials | Reached level 5 681 | -8/Materials | Central database locked down 689 | -8/Materials | Identified exit to Factory 728 | -8/Materials | Entered Factory 730 | -7/Factory | Reached level 6 853 | -7/Factory | Fabricated Blade Saw? 908 | -7/Factory | Core integrity fell below 50% 1000 | -7/Factory | Fabricated Blade Saw (x2) 1048 | -7/Factory | Build established: Hacker-Gladiator 1076 | -7/Factory | Fabricated Blade Saw? 1138 | -7/Factory | Core integrity fell below 20% 1262 | -7/Factory | Reached level 7 1269 | -7/Factory | Upgraded with Utility slot (x1) 1528 | -7/Factory | Search patrols dispatched 1776 | -7/Factory | Discovered new exit (range 4) 1913 | -7/Factory | Reached level 8 2007 | -7/Factory | Self-destructed Last Messages --------------- P-60 Hacker Gravmag System severed. K-01 Serf collects debris. P-60 Hacker Imp. Heat Sink severed. K-01 Serf collects debris. Target Analyzer melted. P-60 Hacker destroyed. K-01 Serf collects debris. Sneak attack on K-01 Serf. Blade Saw follow-up attack on K-01 Serf. K-01 Serf destroyed. Sneak attack on U-05 Engineer. U-05 Engineer Wheel severed. Sneak attack on U-05 Engineer. Blade Saw follow-up attack on U-05 Engineer. U-05 Engineer destroyed. Y-54 Guardian Lgt. Treads severed. Blade Saw destroyed. Y-54 Guardian Lgt. Treads severed. Y-54 Guardian destroyed. K-01 Serf collects debris. Map ----- +----------------------------------------------------+ | ???????????????????????????????????????# ## | | ???????????????????????????????????????# ## | | ???????????????????????????????????????# ## | | ??????????????????????????????#+##+#???# ## =% | | ??????????????????????????????# #???# ## | | ??????????????????????????????# #???# ## * | | ??????????????????????????????# #???# ##%== | | ??????????????????????????????# #???# ##!% | | ??????????????????????????????# #???# ##= | | ??????????????????????????????# ##### ##=* %= | | ??????????????????????????????# ##[![* | | ??????????????????????????????# ! !=##|%=[ | | ??????????????????????????????# % =!##+###### | | ??????????????????????????????# !!%!%!#????? | | ??????????????????????????????# ########+#????? | | ??????????????????############# ##?? * ???? | | ??????????????????#=%!% %% %